[Event "*** Titled Tuesday Blitz"]
[Site "Chess.com"]
[Date "2020.05.05"]
[Round "5"]
[White "SaqoChess_Twitch"]
[Black "PavlovDanila"]
[Result "0-1"]
[WhiteElo "2400"]
[BlackElo "2691"]
[TimeControl "180+1"]
[EndTime "10:57:09 PDT"]
[Termination "PavlovDanila won by resignation"]

1. d4 {[%clk 0:03:00.9]} 1... Nf6 {[%clk 0:02:57.5]} 2. c4 {[%clk 0:02:59.9]}
2... g6 {[%clk 0:02:55.6]} 3. Nc3 {[%clk 0:02:59.8]} 3... Bg7 {[%clk 0:02:55.4]}
4. Nf3 {[%clk 0:03:00.4]} 4... d6 {[%clk 0:02:55.4]} 5. Bf4 {[%clk 0:03:00.8]}
5... O-O {[%clk 0:02:55.6]} 6. h3 {[%clk 0:03:01.3]} 6... Nc6 {[%clk 0:02:53.8]}
7. e3 {[%clk 0:03:01.6]} 7... Nd7 {[%clk 0:02:53.5]} 8. Be2 {[%clk 0:03:01.5]}
8... e5 {[%clk 0:02:53.5]} 9. Bh2 {[%clk 0:03:01]} 9... f5 {[%clk 0:02:53]} 10.
O-O {[%clk 0:02:57.7]} 10... g5 {[%clk 0:02:51]} 11. dxe5 {[%clk 0:02:55.6]}
11... dxe5 {[%clk 0:02:50.1]} 12. Qd5+ {[%clk 0:02:43.3]} 12... Kh8 {[%clk
0:02:38.9]} 13. Rad1 {[%clk 0:02:39.4]} 13... Qe7 {[%clk 0:02:26.1]} 14. a3
{[%clk 0:02:30.7]} 14... Rd8 {[%clk 0:01:58.7]} 15. Qb5 {[%clk 0:02:11]} 15...
a6 {[%clk 0:01:56.5]} 16. Qb3 {[%clk 0:02:10.4]} 16... Nc5 {[%clk 0:01:56.1]}
17. Qc2 {[%clk 0:02:10.2]} 17... e4 {[%clk 0:01:50.9]} 18. Nd4 {[%clk
0:01:59.6]} 18... Ne5 {[%clk 0:01:49.1]} 19. Nd5 {[%clk 0:01:55.9]} 19... Qf7
{[%clk 0:01:46.6]} 20. Bxe5 {[%clk 0:01:50.8]} 20... Bxe5 {[%clk 0:01:44.5]} 21.
b4 {[%clk 0:01:51.3]} 21... Ne6 {[%clk 0:01:37]} 22. Nxe6 {[%clk 0:01:17.5]}
22... Bxe6 {[%clk 0:01:35.3]} 23. Qb3 {[%clk 0:01:08.3]} 23... b5 {[%clk
0:01:14.4]} 24. a4 {[%clk 0:00:47]} 24... Rab8 {[%clk 0:01:12.3]} 25. axb5
{[%clk 0:00:43.5]} 25... axb5 {[%clk 0:01:10.6]} 26. f3 {[%clk 0:00:27.1]} 26...
exf3 {[%clk 0:01:03.5]} 27. Rxf3 {[%clk 0:00:22.9]} 27... c6 {[%clk 0:01:01.1]}
28. Nc3 {[%clk 0:00:19.6]} 28... Rxd1+ {[%clk 0:00:58.7]} 29. Nxd1 {[%clk
0:00:17.7]} 29... bxc4 {[%clk 0:00:58.1]} 30. Qa3 {[%clk 0:00:15.4]} 30... Qd7
{[%clk 0:00:50.9]} 31. Qc1 {[%clk 0:00:10.8]} 31... Rxb4 {[%clk 0:00:44.1]} 32.
e4 {[%clk 0:00:11.1]} 32... f4 {[%clk 0:00:42.4]} 33. Rf2 {[%clk 0:00:08.3]}
33... Bd4 {[%clk 0:00:41.4]} 34. Kh2 {[%clk 0:00:07.8]} 34... Bxf2 {[%clk
0:00:39.9]} 35. Qc3+ {[%clk 0:00:07.4]} 35... Bd4 {[%clk 0:00:30.4]} 36. Qxb4
{[%clk 0:00:08.3]} 36... c5 {[%clk 0:00:30.7]} 37. Qb6 {[%clk 0:00:07.9]} 37...
Kg7 {[%clk 0:00:29.7]} 38. Bf3 {[%clk 0:00:06.5]} 38... c3 {[%clk 0:00:29.1]}
39. e5 {[%clk 0:00:05.2]} 39... c2 {[%clk 0:00:27.8]} 40. Nf2 {[%clk 0:00:02.3]}
40... c1=Q {[%clk 0:00:26.9]} 41. Qb8 {[%clk 0:00:02.5]} 41... Bxf2 {[%clk
0:00:24.4]} 0-1

[Event "*** Titled Tuesday Blitz"]
[Site "Chess.com"]
[Date "2020.05.05"]
[Round "5"]
[White "grunbergmihai"]
[Black "M1711"]
[Result "1-0"]
[WhiteElo "2396"]
[BlackElo "2527"]
[TimeControl "180+1"]
[EndTime "10:57:12 PDT"]
[Termination "grunbergmihai won on time"]

1. Nf3 {[%clk 0:03:00.9]} 1... d5 {[%clk 0:02:59.1]} 2. c4 {[%clk 0:02:57.3]}
2... c6 {[%clk 0:02:54.6]} 3. g3 {[%clk 0:02:56.9]} 3... Nf6 {[%clk 0:02:52.3]}
4. Bg2 {[%clk 0:02:57]} 4... g6 {[%clk 0:02:51.3]} 5. O-O {[%clk 0:02:57.4]}
5... Bg7 {[%clk 0:02:51.6]} 6. d4 {[%clk 0:02:57.6]} 6... O-O {[%clk 0:02:50.8]}
7. Qb3 {[%clk 0:02:57.5]} 7... Qb6 {[%clk 0:02:43.7]} 8. Nc3 {[%clk 0:02:56.9]}
8... Bf5 {[%clk 0:02:37.2]} 9. h3 {[%clk 0:02:56.2]} 9... dxc4 {[%clk
0:02:30.9]} 10. Qxc4 {[%clk 0:02:55.5]} 10... Ne4 {[%clk 0:02:31.6]} 11. Rd1
{[%clk 0:02:31.6]} 11... Nd7 {[%clk 0:02:18.8]} 12. Nh4 {[%clk 0:02:10.3]} 12...
Be6 {[%clk 0:02:09.8]} 13. Qd3 {[%clk 0:02:08]} 13... Nxc3 {[%clk 0:01:56.3]}
14. bxc3 {[%clk 0:02:07.9]} 14... Rad8 {[%clk 0:01:49.5]} 15. Rb1 {[%clk
0:01:59]} 15... Qa5 {[%clk 0:01:45.7]} 16. Qc2 {[%clk 0:01:45.5]} 16... Nb6
{[%clk 0:01:42]} 17. Bf4 {[%clk 0:01:36.5]} 17... g5 {[%clk 0:01:35.1]} 18. Bc7
{[%clk 0:01:28]} 18... gxh4 {[%clk 0:01:34.3]} 19. Bxd8 {[%clk 0:01:27.8]} 19...
Rxd8 {[%clk 0:01:34.7]} 20. gxh4 {[%clk 0:01:25.8]} 20... Qxa2 {[%clk
0:01:23.5]} 21. Qxa2 {[%clk 0:01:24.5]} 21... Bxa2 {[%clk 0:01:24.4]} 22. Ra1
{[%clk 0:01:24.5]} 22... Bc4 {[%clk 0:01:19.3]} 23. Rxa7 {[%clk 0:01:22.7]}
23... Rd7 {[%clk 0:00:44.3]} 24. Rb1 {[%clk 0:01:20.6]} 24... Bb5 {[%clk
0:00:42.4]} 25. e4 {[%clk 0:00:56.7]} 25... Bh6 {[%clk 0:00:18]} 26. d5 {[%clk
0:00:51.1]} 26... Rc7 {[%clk 0:00:05]} 27. e5 {[%clk 0:00:48.7]} 27... Bf8
{[%clk 0:00:02.5]} 28. Rb4 {[%clk 0:00:39.1]} 28... Rc8 {[%clk 0:00:01.9]} 29.
Rxb7 {[%clk 0:00:38.1]} 29... Nxd5 {[%clk 0:00:01.8]} 30. Bxd5 {[%clk 0:00:37]}
30... cxd5 {[%clk 0:00:01.9]} 31. R4xb5 {[%clk 0:00:36.4]} 31... Rxc3 {[%clk
0:00:01.5]} 32. Rxd5 {[%clk 0:00:36]} 32... e6 {[%clk 0:00:02]} 33. Rd8 {[%clk
0:00:34.2]} 33... Kg7 {[%clk 0:00:02.6]} 34. Rdd7 {[%clk 0:00:34.1]} 34... Rf3
{[%clk 0:00:01.8]} 35. Kg2 {[%clk 0:00:34]} 35... Rf5 {[%clk 0:00:02.2]} 36. Kg3
{[%clk 0:00:32.4]} 36... h5 {[%clk 0:00:01.6]} 37. f4 {[%clk 0:00:32.1]} 37...
Kg6 {[%clk 0:00:01.7]} 38. Rb8 {[%clk 0:00:28.5]} 38... Kg7 {[%clk 0:00:02]} 39.
Rdd8 {[%clk 0:00:27.5]} 39... Bc5 {[%clk 0:00:01.1]} 40. Rg8+ {[%clk 0:00:24.7]}
1-0

[Event "*** Titled Tuesday Blitz"]
[Site "Chess.com"]
[Date "2020.05.05"]
[Round "5"]
[White "GM_DarwinLaylo"]
[Black "Loiacono_Antonio"]
[Result "1-0"]
[WhiteElo "2529"]
[BlackElo "2370"]
[TimeControl "180+1"]
[EndTime "10:57:12 PDT"]
[Termination "GM_DarwinLaylo won on time"]

1. c4 {[%clk 0:02:59.8]} 1... c6 {[%clk 0:02:59.1]} 2. Nc3 {[%clk 0:02:54.4]}
2... d5 {[%clk 0:02:59.2]} 3. e3 {[%clk 0:02:53.7]} 3... Nf6 {[%clk 0:02:58.2]}
4. Nf3 {[%clk 0:02:51.9]} 4... e6 {[%clk 0:02:58.5]} 5. Qc2 {[%clk 0:02:50.9]}
5... Nbd7 {[%clk 0:02:58.3]} 6. b3 {[%clk 0:02:50.4]} 6... b6 {[%clk 0:02:58.5]}
7. Bb2 {[%clk 0:02:50]} 7... Bb7 {[%clk 0:02:59.1]} 8. Be2 {[%clk 0:02:45.4]}
8... Bd6 {[%clk 0:02:59.2]} 9. g4 {[%clk 0:02:43.9]} 9... h6 {[%clk 0:02:42.7]}
10. Rg1 {[%clk 0:02:40.3]} 10... Qe7 {[%clk 0:02:38]} 11. h4 {[%clk 0:02:34.9]}
11... a6 {[%clk 0:02:23.3]} 12. g5 {[%clk 0:02:32.1]} 12... hxg5 {[%clk
0:02:21.7]} 13. hxg5 {[%clk 0:02:32.2]} 13... Nh5 {[%clk 0:02:10.7]} 14. O-O-O
{[%clk 0:02:25.9]} 14... dxc4 {[%clk 0:02:09.5]} 15. bxc4 {[%clk 0:02:23.4]}
15... O-O-O {[%clk 0:02:06]} 16. Ne4 {[%clk 0:02:06.5]} 16... Bc7 {[%clk
0:01:58.8]} 17. d4 {[%clk 0:01:54.7]} 17... c5 {[%clk 0:01:56.1]} 18. d5 {[%clk
0:01:53.7]} 18... exd5 {[%clk 0:01:50.8]} 19. cxd5 {[%clk 0:01:52.6]} 19... Bd6
{[%clk 0:01:50.9]} 20. g6 {[%clk 0:01:37.4]} 20... fxg6 {[%clk 0:01:37.2]} 21.
Rxg6 {[%clk 0:01:33.6]} 21... Nhf6 {[%clk 0:01:34.1]} 22. Nxd6+ {[%clk 0:01:26]}
22... Qxd6 {[%clk 0:01:32.5]} 23. Ng5 {[%clk 0:01:17.2]} 23... Ne5 {[%clk
0:01:13.7]} 24. Rxg7 {[%clk 0:01:15.3]} 24... Rhe8 {[%clk 0:01:07.4]} 25. Ne6
{[%clk 0:01:05.6]} 25... Rd7 {[%clk 0:00:51.8]} 26. f4 {[%clk 0:00:57.5]} 26...
Bxd5 {[%clk 0:00:09.5]} 27. fxe5 {[%clk 0:00:53.2]} 27... Qxe6 {[%clk
0:00:09.7]} 28. exf6 {[%clk 0:00:50.3]} 28... Rxg7 {[%clk 0:00:07.8]} 29. fxg7
{[%clk 0:00:48.9]} 29... Qxe3+ {[%clk 0:00:07.8]} 30. Rd2 {[%clk 0:00:48.5]}
30... Be4 {[%clk 0:00:07.1]} 31. Qc3 {[%clk 0:00:43.9]} 31... Qg1+ {[%clk
0:00:04.4]} 32. Bd1 {[%clk 0:00:41.5]} 32... Rg8 {[%clk 0:00:02.1]} 33. Qf6
{[%clk 0:00:35.1]} 1-0

[Event "*** Titled Tuesday Blitz"]
[Site "Chess.com"]
[Date "2020.05.05"]
[Round "5"]
[White "StegariuVlad"]
[Black "MattyDPerrine"]
[Result "1-0"]
[WhiteElo "2518"]
[BlackElo "2362"]
[TimeControl "180+1"]
[EndTime "10:57:12 PDT"]
[Termination "StegariuVlad won on time"]

1. e4 {[%clk 0:03:00.9]} 1... c5 {[%clk 0:03:00]} 2. Nf3 {[%clk 0:03:00.2]} 2...
a6 {[%clk 0:02:59.9]} 3. d4 {[%clk 0:02:58.8]} 3... cxd4 {[%clk 0:03:00.8]} 4.
Nxd4 {[%clk 0:02:58.6]} 4... Nf6 {[%clk 0:03:00.9]} 5. Bd3 {[%clk 0:02:53.1]}
5... e5 {[%clk 0:02:57.3]} 6. Ne2 {[%clk 0:02:49.9]} 6... d5 {[%clk 0:02:27.6]}
7. exd5 {[%clk 0:02:45.8]} 7... e4 {[%clk 0:02:21.1]} 8. Bc4 {[%clk 0:02:45.6]}
8... b5 {[%clk 0:02:21.2]} 9. Bb3 {[%clk 0:02:45.3]} 9... Bb7 {[%clk 0:02:21.8]}
10. Bg5 {[%clk 0:02:42.1]} 10... Be7 {[%clk 0:02:21.4]} 11. Nbc3 {[%clk
0:02:33.5]} 11... b4 {[%clk 0:01:59.1]} 12. Bxf6 {[%clk 0:02:15.7]} 12... Bxf6
{[%clk 0:01:58.6]} 13. Nxe4 {[%clk 0:02:15.6]} 13... Bxb2 {[%clk 0:01:54.6]} 14.
Rb1 {[%clk 0:02:15.4]} 14... Be5 {[%clk 0:01:54.4]} 15. Nc5 {[%clk 0:02:07.1]}
15... O-O {[%clk 0:01:28.6]} 16. Nxb7 {[%clk 0:01:56.9]} 16... Qb6 {[%clk
0:01:28.6]} 17. c4 {[%clk 0:01:47.6]} 17... Qxb7 {[%clk 0:01:18.4]} 18. c5
{[%clk 0:01:42.5]} 18... Qb5 {[%clk 0:01:12.8]} 19. Qc2 {[%clk 0:01:34.9]} 19...
Nd7 {[%clk 0:01:12.3]} 20. c6 {[%clk 0:01:27.1]} 20... Nb6 {[%clk 0:01:12]} 21.
O-O {[%clk 0:01:22.2]} 21... Nxd5 {[%clk 0:00:39]} 22. Bxd5 {[%clk 0:01:21.2]}
22... Qxd5 {[%clk 0:00:39.9]} 23. Rxb4 {[%clk 0:01:21.2]} 23... Rac8 {[%clk
0:00:26.4]} 24. Rc4 {[%clk 0:01:17.9]} 24... Rc7 {[%clk 0:00:18.4]} 25. Rd1
{[%clk 0:01:16.4]} 25... Qe6 {[%clk 0:00:18.6]} 26. Rc1 {[%clk 0:00:49.6]} 26...
Rfc8 {[%clk 0:00:17]} 27. g3 {[%clk 0:00:46.9]} 27... Qf6 {[%clk 0:00:14.3]} 28.
Qe4 {[%clk 0:00:39.7]} 28... g6 {[%clk 0:00:11]} 29. R1c2 {[%clk 0:00:33.3]}
29... Qd6 {[%clk 0:00:07.6]} 30. Kg2 {[%clk 0:00:33.1]} 30... f5 {[%clk
0:00:06.8]} 31. Qf3 {[%clk 0:00:31.4]} 31... Kg7 {[%clk 0:00:04.8]} 32. h4
{[%clk 0:00:27]} 32... h5 {[%clk 0:00:03.7]} 33. Nc1 {[%clk 0:00:24.5]} 33...
Bf6 {[%clk 0:00:03.2]} 34. Nd3 {[%clk 0:00:24.1]} 34... Kh7 {[%clk 0:00:02.5]}
35. Nf4 {[%clk 0:00:24]} 35... Rd8 {[%clk 0:00:01.8]} 36. a4 {[%clk 0:00:17.5]}
36... Be5 {[%clk 0:00:02.3]} 37. Ne2 {[%clk 0:00:15.7]} 37... Kg7 {[%clk
0:00:02.2]} 38. Nc1 {[%clk 0:00:15.7]} 38... Rdc8 {[%clk 0:00:02.3]} 39. Nb3
{[%clk 0:00:15.8]} 39... Rb8 {[%clk 0:00:01.5]} 40. Nc5 {[%clk 0:00:15.5]} 1-0

[Event "*** Titled Tuesday Blitz"]
[Site "Chess.com"]
[Date "2020.05.05"]
[Round "5"]
[White "amiralfio"]
[Black "wanyaland"]
[Result "0-1"]
[WhiteElo "2457"]
[BlackElo "2304"]
[TimeControl "180+1"]
[EndTime "10:57:12 PDT"]
[Termination "wanyaland won on time"]

1. d4 {[%clk 0:03:00.9]} 1... d5 {[%clk 0:02:58.3]} 2. Bf4 {[%clk 0:02:56]} 2...
e6 {[%clk 0:02:59.2]} 3. e3 {[%clk 0:02:50.6]} 3... Bd6 {[%clk 0:02:55.5]} 4.
Bg3 {[%clk 0:02:49.6]} 4... Nf6 {[%clk 0:02:52.4]} 5. Nd2 {[%clk 0:02:47.6]}
5... b6 {[%clk 0:02:51.4]} 6. c3 {[%clk 0:02:46.6]} 6... O-O {[%clk 0:02:49.1]}
7. Ngf3 {[%clk 0:02:46.4]} 7... c5 {[%clk 0:02:45.4]} 8. Ne5 {[%clk 0:02:38.6]}
8... Qc7 {[%clk 0:02:44.8]} 9. f4 {[%clk 0:02:31.9]} 9... Ba6 {[%clk 0:02:35.2]}
10. Bxa6 {[%clk 0:02:20.6]} 10... Nxa6 {[%clk 0:02:36.1]} 11. Qa4 {[%clk
0:02:21.1]} 11... Nb8 {[%clk 0:02:34.9]} 12. O-O {[%clk 0:02:18.9]} 12... Rc8
{[%clk 0:02:25.7]} 13. f5 {[%clk 0:02:16]} 13... Nc6 {[%clk 0:02:21.9]} 14. fxe6
{[%clk 0:02:10.1]} 14... fxe6 {[%clk 0:02:22.8]} 15. Ndf3 {[%clk 0:02:00.9]}
15... Ne4 {[%clk 0:02:17.3]} 16. Bf4 {[%clk 0:01:49.7]} 16... Bxe5 {[%clk
0:02:11.8]} 17. Nxe5 {[%clk 0:01:43.6]} 17... Nxe5 {[%clk 0:02:08.8]} 18. Bxe5
{[%clk 0:01:42.5]} 18... Qe7 {[%clk 0:02:08.8]} 19. Rf4 {[%clk 0:01:35.5]} 19...
Rf8 {[%clk 0:02:02.2]} 20. Raf1 {[%clk 0:01:29.8]} 20... Rxf4 {[%clk 0:02:01.2]}
21. Rxf4 {[%clk 0:01:30.7]} 21... Rf8 {[%clk 0:01:59.8]} 22. Qc6 {[%clk
0:01:26.1]} 22... Rxf4 {[%clk 0:01:54.9]} 23. Bxf4 {[%clk 0:01:25.1]} 23... h6
{[%clk 0:01:54.2]} 24. a4 {[%clk 0:01:06.5]} 24... Kh7 {[%clk 0:01:51.1]} 25.
Qc7 {[%clk 0:01:01.5]} 25... Qh4 {[%clk 0:01:42.1]} 26. Bg3 {[%clk 0:00:54]}
26... Qg4 {[%clk 0:01:38.7]} 27. Qf4 {[%clk 0:00:45.7]} 27... Qe2 {[%clk
0:01:33.3]} 28. h4 {[%clk 0:00:21.5]} 28... Qxb2 {[%clk 0:01:28.3]} 29. c4
{[%clk 0:00:21.6]} 29... Qc1+ {[%clk 0:01:26.2]} 30. Kh2 {[%clk 0:00:20.2]}
30... Qxc4 {[%clk 0:01:25.9]} 31. h5 {[%clk 0:00:19.3]} 31... Qe2 {[%clk
0:01:12.8]} 32. Qh4 {[%clk 0:00:09.9]} 32... Qxe3 {[%clk 0:01:02.6]} 33. Be5
{[%clk 0:00:10]} 33... Qg5 {[%clk 0:00:59.3]} 34. Qe1 {[%clk 0:00:09.8]} 34...
Qxh5+ {[%clk 0:00:54.4]} 35. Kg1 {[%clk 0:00:10.3]} 35... c4 {[%clk 0:00:54.5]}
36. Qf1 {[%clk 0:00:07.5]} 36... Qf5 {[%clk 0:00:53.4]} 37. Qc1 {[%clk
0:00:06.4]} 37... c3 {[%clk 0:00:50.1]} 38. Kh1 {[%clk 0:00:06.7]} 38... Qf2
{[%clk 0:00:44.2]} 39. Kh2 {[%clk 0:00:02.5]} 39... c2 {[%clk 0:00:43]} 40. Qa3
{[%clk 0:00:02.4]} 40... Qd2 {[%clk 0:00:35.2]} 0-1

[Event "*** Titled Tuesday Blitz"]
[Site "Chess.com"]
[Date "2020.05.05"]
[Round "5"]
[White "doons21"]
[Black "diskeleven"]
[Result "1/2-1/2"]
[WhiteElo "2604"]
[BlackElo "2360"]
[TimeControl "180+1"]
[EndTime "10:57:13 PDT"]
[Termination "Game drawn - insufficient material"]

1. e4 {[%clk 0:03:00.9]} 1... c5 {[%clk 0:02:59.8]} 2. c3 {[%clk 0:03:00.5]}
2... e6 {[%clk 0:02:57.9]} 3. d4 {[%clk 0:02:59.5]} 3... d5 {[%clk 0:02:58.5]}
4. e5 {[%clk 0:02:49.8]} 4... Qb6 {[%clk 0:02:57.5]} 5. Nf3 {[%clk 0:02:49]}
5... Bd7 {[%clk 0:02:57.8]} 6. Be2 {[%clk 0:02:49.4]} 6... cxd4 {[%clk
0:02:57.6]} 7. cxd4 {[%clk 0:02:22.6]} 7... Bb5 {[%clk 0:02:57.3]} 8. O-O {[%clk
0:02:20.5]} 8... Bxe2 {[%clk 0:02:56.9]} 9. Qxe2 {[%clk 0:02:21.4]} 9... Nc6
{[%clk 0:02:57.1]} 10. Nc3 {[%clk 0:02:19.7]} 10... Nge7 {[%clk 0:02:35.9]} 11.
Be3 {[%clk 0:02:11.8]} 11... Nf5 {[%clk 0:02:34.9]} 12. Rac1 {[%clk 0:02:05.5]}
12... Be7 {[%clk 0:02:33]} 13. a3 {[%clk 0:02:00.1]} 13... O-O {[%clk
0:02:32.5]} 14. Na4 {[%clk 0:02:00.3]} 14... Qc7 {[%clk 0:02:18.8]} 15. b4
{[%clk 0:01:57]} 15... Qd7 {[%clk 0:02:05.2]} 16. Nc5 {[%clk 0:01:46.4]} 16...
Bxc5 {[%clk 0:02:05]} 17. Rxc5 {[%clk 0:01:47.3]} 17... b6 {[%clk 0:02:02.5]}
18. Rc3 {[%clk 0:01:40.7]} 18... Nxe3 {[%clk 0:01:46.2]} 19. Qxe3 {[%clk
0:01:32.2]} 19... a5 {[%clk 0:01:38.1]} 20. b5 {[%clk 0:01:29.7]} 20... Ne7
{[%clk 0:01:34.6]} 21. a4 {[%clk 0:01:29.8]} 21... Rac8 {[%clk 0:01:26.4]} 22.
Rfc1 {[%clk 0:01:28.7]} 22... Rxc3 {[%clk 0:01:26.3]} 23. Rxc3 {[%clk
0:01:28.2]} 23... Rc8 {[%clk 0:01:26]} 24. Qc1 {[%clk 0:01:16.3]} 24... h6
{[%clk 0:01:16.2]} 25. g4 {[%clk 0:01:10.2]} 25... Rxc3 {[%clk 0:01:15.1]} 26.
Qxc3 {[%clk 0:01:09.5]} 26... Qc8 {[%clk 0:01:15]} 27. Qxc8+ {[%clk 0:01:05]}
27... Nxc8 {[%clk 0:01:14.7]} 28. Ne1 {[%clk 0:00:54.7]} 28... Ne7 {[%clk
0:01:13.6]} 29. Nd3 {[%clk 0:00:48.9]} 29... g5 {[%clk 0:01:03.2]} 30. f4 {[%clk
0:00:35.6]} 30... Ng6 {[%clk 0:00:59.6]} 31. fxg5 {[%clk 0:00:35.1]} 31... hxg5
{[%clk 0:00:59.2]} 32. Kf2 {[%clk 0:00:34]} 32... Kg7 {[%clk 0:00:57.6]} 33. Ke3
{[%clk 0:00:32.8]} 33... f6 {[%clk 0:00:57.9]} 34. h3 {[%clk 0:00:19.1]} 34...
f5 {[%clk 0:00:57.1]} 35. gxf5 {[%clk 0:00:14.2]} 35... exf5 {[%clk 0:00:57.3]}
36. Kf3 {[%clk 0:00:14.6]} 36... Kf7 {[%clk 0:00:50.2]} 37. Nc1 {[%clk
0:00:14.2]} 37... Nh4+ {[%clk 0:00:46.7]} 38. Kg3 {[%clk 0:00:14.1]} 38... Kg6
{[%clk 0:00:41.6]} 39. Ne2 {[%clk 0:00:14.1]} 39... Kh5 {[%clk 0:00:38.9]} 40.
Nc3 {[%clk 0:00:14]} 40... f4+ {[%clk 0:00:39.3]} 41. Kf2 {[%clk 0:00:14.5]}
41... Nf5 {[%clk 0:00:38.9]} 42. Nxd5 {[%clk 0:00:14.5]} 42... Nxd4 {[%clk
0:00:39.1]} 43. Nxb6 {[%clk 0:00:14.4]} 43... Kg6 {[%clk 0:00:35.7]} 44. Nc4
{[%clk 0:00:14.5]} 44... Kf5 {[%clk 0:00:31.2]} 45. Nxa5 {[%clk 0:00:14.4]}
45... Kxe5 {[%clk 0:00:31.5]} 46. Nc6+ {[%clk 0:00:12.7]} 46... Nxc6 {[%clk
0:00:31]} 47. bxc6 {[%clk 0:00:13.6]} 47... Kd6 {[%clk 0:00:31.6]} 48. Kf3
{[%clk 0:00:12.9]} 48... Kxc6 {[%clk 0:00:31.4]} 49. h4 {[%clk 0:00:13.3]} 49...
gxh4 {[%clk 0:00:31.2]} 50. Kxf4 {[%clk 0:00:13.7]} 50... Kb6 {[%clk 0:00:31.6]}
51. Kg4 {[%clk 0:00:14]} 51... Ka5 {[%clk 0:00:32.5]} 52. Kxh4 {[%clk
0:00:14.4]} 52... Kxa4 {[%clk 0:00:33.4]} 1/2-1/2

[Event "*** Titled Tuesday Blitz"]
[Site "Chess.com"]
[Date "2020.05.05"]
[Round "5"]
[White "BasilSmash"]
[Black "Abund"]
[Result "1-0"]
[WhiteElo "2442"]
[BlackElo "2627"]
[TimeControl "180+1"]
[EndTime "10:57:13 PDT"]
[Termination "BasilSmash won on time"]

1. d4 {[%clk 0:02:58.1]} 1... Nf6 {[%clk 0:02:59.6]} 2. Nf3 {[%clk 0:02:58.2]}
2... g6 {[%clk 0:02:59.6]} 3. g3 {[%clk 0:02:58.5]} 3... Bg7 {[%clk 0:02:59.1]}
4. Bg2 {[%clk 0:02:58.7]} 4... O-O {[%clk 0:02:59.6]} 5. O-O {[%clk 0:02:59.3]}
5... d5 {[%clk 0:03:00]} 6. c4 {[%clk 0:02:59.3]} 6... dxc4 {[%clk 0:03:00.9]}
7. Na3 {[%clk 0:02:59]} 7... c3 {[%clk 0:03:01.3]} 8. bxc3 {[%clk 0:02:59.8]}
8... c5 {[%clk 0:03:01.8]} 9. Re1 {[%clk 0:02:58]} 9... Nd5 {[%clk 0:02:20.4]}
10. Bb2 {[%clk 0:02:51.8]} 10... cxd4 {[%clk 0:02:09.7]} 11. cxd4 {[%clk
0:02:50.7]} 11... Nc6 {[%clk 0:02:09.9]} 12. e4 {[%clk 0:02:46.6]} 12... Nb6
{[%clk 0:02:10.1]} 13. Rb1 {[%clk 0:02:33.8]} 13... Bg4 {[%clk 0:02:04]} 14. d5
{[%clk 0:02:33.5]} 14... Ne5 {[%clk 0:01:58.1]} 15. Qb3 {[%clk 0:02:23.2]} 15...
Nxf3+ {[%clk 0:01:41.1]} 16. Bxf3 {[%clk 0:02:24.1]} 16... Bxb2 {[%clk
0:01:31.7]} 17. Rxb2 {[%clk 0:02:20]} 17... Bxf3 {[%clk 0:01:26.3]} 18. Qxf3
{[%clk 0:02:20.9]} 18... Rc8 {[%clk 0:01:22.1]} 19. h4 {[%clk 0:02:09.2]} 19...
Qd7 {[%clk 0:01:09.8]} 20. h5 {[%clk 0:02:01.4]} 20... Nc4 {[%clk 0:01:09.6]}
21. Nxc4 {[%clk 0:02:00.6]} 21... Rxc4 {[%clk 0:01:10.5]} 22. h6 {[%clk
0:01:56.2]} 22... Rfc8 {[%clk 0:01:04.2]} 23. Kg2 {[%clk 0:01:51.2]} 23... b6
{[%clk 0:01:01.1]} 24. e5 {[%clk 0:01:46.2]} 24... Rd4 {[%clk 0:00:49.3]} 25.
Rd1 {[%clk 0:01:17]} 25... Rxd1 {[%clk 0:00:48.9]} 26. Qxd1 {[%clk 0:01:17.9]}
26... Qf5 {[%clk 0:00:38]} 27. Re2 {[%clk 0:01:08.8]} 27... Rd8 {[%clk
0:00:17.2]} 28. d6 {[%clk 0:01:04]} 28... Qe6 {[%clk 0:00:16.5]} 29. Qd4 {[%clk
0:00:43.9]} 29... f6 {[%clk 0:00:07.7]} 30. exf6 {[%clk 0:00:28.9]} 30... Qxe2
{[%clk 0:00:07.8]} 31. fxe7 {[%clk 0:00:27.1]} 31... Kf7 {[%clk 0:00:03.1]} 32.
exd8=Q {[%clk 0:00:23.8]} 32... Qe4+ {[%clk 0:00:01.6]} 33. Qxe4 {[%clk
0:00:21.7]} 1-0

[Event "*** Titled Tuesday Blitz"]
[Site "Chess.com"]
[Date "2020.05.05"]
[Round "5"]
[White "CSB7"]
[Black "Aureliano-Buendia"]
[Result "0-1"]
[WhiteElo "2532"]
[BlackElo "2403"]
[TimeControl "180+1"]
[EndTime "10:57:13 PDT"]
[Termination "Aureliano-Buendia won by resignation"]

1. e4 {[%clk 0:03:00.9]} 1... e5 {[%clk 0:02:59]} 2. Nf3 {[%clk 0:03:01.3]} 2...
Nc6 {[%clk 0:02:58.6]} 3. Bc4 {[%clk 0:03:01.6]} 3... Bc5 {[%clk 0:02:58.2]} 4.
O-O {[%clk 0:03:01.2]} 4... Nf6 {[%clk 0:02:56.7]} 5. d3 {[%clk 0:03:01.6]} 5...
O-O {[%clk 0:02:54.4]} 6. c3 {[%clk 0:03:01.7]} 6... a6 {[%clk 0:02:47.2]} 7.
Re1 {[%clk 0:02:57.2]} 7... d5 {[%clk 0:02:43]} 8. exd5 {[%clk 0:02:50.6]} 8...
Nxd5 {[%clk 0:02:43.9]} 9. Nxe5 {[%clk 0:02:40.8]} 9... Nxe5 {[%clk 0:02:41.5]}
10. Rxe5 {[%clk 0:02:41.7]} 10... Bxf2+ {[%clk 0:02:38.6]} 11. Kxf2 {[%clk
0:02:41.4]} 11... Qf6+ {[%clk 0:02:37.8]} 12. Qf3 {[%clk 0:02:41.9]} 12... Qxe5
{[%clk 0:02:37.7]} 13. Bxd5 {[%clk 0:02:30.6]} 13... c6 {[%clk 0:02:34]} 14. Bb3
{[%clk 0:02:22.9]} 14... Qxh2 {[%clk 0:02:22.8]} 15. Bf4 {[%clk 0:02:14]} 15...
Qh4+ {[%clk 0:02:12.7]} 16. Bg3 {[%clk 0:01:47.6]} 16... Qh6 {[%clk 0:02:09.8]}
17. Bf4 {[%clk 0:01:43.4]} 17... Qh4+ {[%clk 0:02:08.4]} 18. g3 {[%clk
0:01:42.7]} 18... Qh2+ {[%clk 0:02:05.7]} 19. Qg2 {[%clk 0:01:42.6]} 19... Qh5
{[%clk 0:02:02.5]} 20. Nd2 {[%clk 0:01:39.9]} 20... Bf5 {[%clk 0:01:53.5]} 21.
Rh1 {[%clk 0:01:25.6]} 21... Qg6 {[%clk 0:01:52.9]} 22. Nf3 {[%clk 0:00:41.8]}
22... Be6 {[%clk 0:01:26.9]} 23. Bxe6 {[%clk 0:00:32.1]} 23... Qxe6 {[%clk
0:01:26.1]} 24. Ng5 {[%clk 0:00:20.2]} 24... Qxa2 {[%clk 0:01:25.6]} 25. Qh3
{[%clk 0:00:05.1]} 25... Qxb2+ {[%clk 0:01:23.4]} 26. Kf3 {[%clk 0:00:05]} 26...
h6 {[%clk 0:01:17.3]} 27. Ne4 {[%clk 0:00:05.3]} 27... f5 {[%clk 0:01:13.6]} 28.
Nf2 {[%clk 0:00:03.6]} 28... Qxc3 {[%clk 0:01:12]} 29. Bxh6 {[%clk 0:00:03.9]}
29... gxh6 {[%clk 0:00:54.8]} 30. Qxh6 {[%clk 0:00:04.8]} 30... Qg7 {[%clk
0:00:55]} 31. Qe6+ {[%clk 0:00:05.3]} 31... Qf7 {[%clk 0:00:55.4]} 32. Qh6
{[%clk 0:00:04.9]} 32... Qg7 {[%clk 0:00:55.5]} 33. Qe6+ {[%clk 0:00:05.3]}
33... Rf7 {[%clk 0:00:56]} 34. Rh6 {[%clk 0:00:05.2]} 34... Kf8 {[%clk
0:00:49.9]} 35. Rg6 {[%clk 0:00:05.5]} 35... Re7 {[%clk 0:00:50.2]} 36. Qd6
{[%clk 0:00:05.4]} 36... Qe5 {[%clk 0:00:40.8]} 37. Qb4 {[%clk 0:00:01.9]} 37...
Qd5+ {[%clk 0:00:39.9]} 38. Kf4 {[%clk 0:00:02.4]} 38... Re8 {[%clk 0:00:38.6]}
39. Qb2 {[%clk 0:00:01.3]} 39... Re5 {[%clk 0:00:35.6]} 40. Kg5 {[%clk
0:00:01.2]} 40... f4+ {[%clk 0:00:35.1]} 41. Kxf4 {[%clk 0:00:01.4]} 41... Qf7+
{[%clk 0:00:31.9]} 0-1